bitfinex/quotes_BTCUSD_20251015
["timestamp","ask_amount","ask_price","bid_price","bid_amount"]
[1760565027855,0.18913806,111030.0,111020.0,0.29374772]
[1760565028216,0.18290741,111050.0,111030.0,0.18013149]
[1760565028467,0.18305704,111050.0,111040.0,0.29371527]
[1760565028672,0.21011789,111050.0,111040.0,0.1136]
[1760565028851,0.21011789,111050.0,111040.0,0.29371527]
[1760565029065,0.21011789,111050.0,111040.0,0.1136]
[1760565029282,0.21011789,111050.0,111040.0,0.29371527]
[1760565029483,0.18298132,111050.0,111040.0,0.38340539]
[1760565029722,0.00288227,111050.0,111040.0,0.38340539]
[1760565029936,0.00288227,111050.0,111040.0,1.63462076]
[1760565030576,0.00288227,111050.0,111040.0,2.03462076]
[1760565030781,0.00288227,111050.0,111040.0,2.03562076]
[1760565031005,0.00288227,111050.0,111040.0,2.03662076]
[1760565031206,0.00288227,111050.0,111040.0,2.03562076]
[1760565031353,0.00288227,111050.0,111040.0,2.03662076]
[1760565032303,0.00288227,111050.0,111040.0,2.53662076]
[1760565032495,0.00288227,111050.0,111040.0,2.42302076]
[1760565032917,0.00288227,111050.0,111040.0,2.53662076]
[1760565033259,0.00288227,111050.0,111040.0,2.42302076]
[1760565033465,0.00288227,111050.0,111040.0,2.79575051]
[1760565033898,0.00288227,111050.0,111040.0,2.68215051]
[1760565034105,0.00288227,111050.0,111040.0,2.79571051]
[1760565034525,0.00288227,111050.0,111040.0,2.68215051]
[1760565034728,0.00288227,111050.0,111040.0,2.79571051]
[1760565035422,0.00288227,111050.0,111040.0,2.68217169]
[1760565035599,0.00288227,111050.0,111040.0,2.79573169]
[1760565036000,0.00288227,111050.0,111040.0,2.68217169]
[1760565036197,0.00288227,111050.0,111040.0,2.79573169]
[1760565039722,0.00288227,111050.0,111040.0,2.84977169]
[1760565040788,0.0717521,111090.0,111080.0,0.18005041]
[1760565040934,0.07190235,111090.0,111080.0,0.38330053]
[1760565041147,0.00015025,111090.0,111080.0,0.08969012]
[1760565041349,0.18008283,111060.0,111040.0,1.08827935]
[1760565041552,0.18008283,111060.0,111050.0,0.20341012]
[1760565041748,0.18008283,111060.0,111050.0,0.08969012]
[1760565042007,0.18008283,111060.0,111050.0,0.20341012]
[1760565042554,0.18067117,111060.0,111050.0,0.20341012]
[1760565042754,0.18067117,111060.0,111050.0,0.20441012]
[1760565043152,0.18067117,111060.0,111050.0,0.08969012]
[1760565043411,0.18067117,111060.0,111050.0,0.70341012]
[1760565043551,0.18067117,111060.0,111050.0,0.70441012]
[1760565044395,0.18067117,111060.0,111050.0,0.59069012]
[1760565044622,0.18067117,111060.0,111050.0,0.70437012]
[1760565044987,0.18067117,111060.0,111050.0,0.59069012]
[1760565045460,0.18067117,111060.0,111050.0,0.61468]
[1760565049617,0.18067117,111060.0,111050.0,0.61464]
[1760565049831,0.18067117,111060.0,111050.0,0.501]
[1760565050312,0.18067117,111060.0,111050.0,0.61464]
[1760565051250,0.18067117,111060.0,111050.0,0.501]
[1760565051785,0.53999794,111060.0,111050.0,0.501]
[1760565051925,0.5642811,111060.0,111050.0,0.61464]
[1760565052123,0.5642811,111060.0,111050.0,0.61364]
[1760565052366,0.57237549,111060.0,111050.0,0.61364]
[1760565052615,0.57237549,111060.0,111050.0,0.5]
[1760565052792,0.59655571,111060.0,111050.0,0.61364]
[1760565053415,0.57237549,111060.0,111050.0,0.5]
[1760565053644,0.57237549,111060.0,111050.0,0.61364]
[1760565054054,0.57237549,111060.0,111050.0,0.5]
[1760565054282,0.57237549,111060.0,111050.0,0.61364]
[1760565054440,0.57237549,111060.0,111050.0,0.6136]
[1760565056386,0.62094181,111060.0,111050.0,0.5]
[1760565056605,0.62094181,111060.0,111050.0,0.6136]
[1760565058795,0.62094181,111060.0,111050.0,0.5]
[1760565059319,0.57237549,111060.0,111050.0,0.6136]
[1760565061024,0.57237549,111060.0,111050.0,0.5]
[1760565061520,0.57237549,111060.0,111050.0,0.61356]
[1760565061765,0.62094181,111060.0,111050.0,0.61356]
[1760565062474,0.18013149,111030.0,111020.0,0.4]
[1760565062680,0.18013149,111030.0,111020.0,0.60325012]
[1760565063135,0.18013149,111030.0,111020.0,0.48969012]
[1760565063563,0.18013149,111030.0,111020.0,0.60325012]
[1760565063774,0.18013149,111030.0,111020.0,0.60439975]
[1760565063980,0.18013149,111030.0,111020.0,0.49083975]
[1760565064196,0.18013149,111030.0,111020.0,0.60339975]
[1760565064612,0.18013149,111030.0,111020.0,0.60439975]
[1760565064850,0.18013149,111030.0,111020.0,0.49083975]
[1760565065040,0.18013149,111030.0,111020.0,0.60439975]
[1760565065468,0.18013149,111030.0,111020.0,0.49183975]
[1760565065674,0.18013149,111030.0,111020.0,0.60539975]
[1760565065878,0.18013149,111030.0,111020.0,0.60439975]
[1760565066086,0.18013149,111030.0,111020.0,0.49083975]
[1760565066286,0.18013149,111030.0,111020.0,0.60439975]
[1760565066716,0.19920041,111030.0,111020.0,0.60439975]
[1760565066925,0.19920041,111030.0,111020.0,0.49083975]
[1760565067138,0.19920041,111030.0,111020.0,0.60439975]
[1760565067584,0.19920041,111030.0,111020.0,0.49083975]
[1760565067840,0.19920041,111030.0,111020.0,0.60439975]
[1760565068427,0.19920041,111030.0,111020.0,0.49083975]
[1760565068671,0.19920041,111030.0,111020.0,0.60439975]
[1760565069128,0.01906892,111030.0,111020.0,0.60439975]
[1760565069345,0.19920041,111030.0,111020.0,0.60439975]
[1760565069558,0.18013149,111030.0,111020.0,0.60439975]
[1760565069999,0.52013149,111030.0,111020.0,0.11470963]
[1760565070221,0.53948874,111030.0,111020.0,0.11470963]
[1760565070926,0.53948874,111030.0,111020.0,0.11370963]
[1760565071147,0.55834515,111030.0,111020.0,0.11370963]
[1760565072066,0.55834515,111030.0,111020.0,0.00014963]
[1760565072289,0.55834515,111030.0,111020.0,0.11370963]
[1760565074121,0.55834515,111030.0,111020.0,0.00014963]
[1760565074339,0.55834515,111030.0,111020.0,0.11370963]
[1760565074743,0.55834515,111030.0,111020.0,0.00014963]
[1760565074943,0.55834515,111030.0,111020.0,0.11370963]
[1760565075164,0.55834515,111030.0,111020.0,0.11374963]
[1760565075597,0.55834515,111030.0,111020.0,0.00014963]
[1760565075762,0.55834515,111030.0,111020.0,0.11374963]
[1760565075960,0.55834515,111030.0,111020.0,0.00014963]
[1760565076164,0.55834515,111030.0,111020.0,0.11374963]
[1760565077143,0.55834515,111030.0,111020.0,0.00014963]
[1760565077385,0.55834515,111030.0,111020.0,0.11374963]
[1760565079191,0.58254423,111030.0,111020.0,0.11374963]
[1760565080157,0.58254423,111030.0,111020.0,0.00014963]
[1760565080364,0.58254423,111030.0,111020.0,0.11374963]
[1760565081237,0.49781237,111030.0,111020.0,0.00014963]
[1760565081442,0.49781237,111030.0,111020.0,0.11374963]
[1760565082723,5.49781237,111030.0,111020.0,0.11374963]
[1760565082925,5.49781237,111030.0,111020.0,0.00014963]
[1760565083307,5.52488174,111030.0,111020.0,0.00014963]
[1760565086327,5.54908082,111030.0,111020.0,0.00014963]
[1760565089993,5.63877094,111030.0,111020.0,0.00014963]
[1760565090200,0.18014772,111020.0,111010.0,0.11633313]
[1760565090414,0.18014772,111020.0,111010.0,0.00273313]
[1760565090415,5.19950497,111020.0,111010.0,0.00273313]
[1760565091250,5.22370405,111020.0,111010.0,0.00273313]
[1760565091928,0.18016394,111010.0,111000.0,0.12258888]
[1760565092148,0.19952119,111010.0,111000.0,0.12258888]
[1760565092364,0.19952119,111010.0,111000.0,0.00898888]
[1760565092579,0.19952119,111010.0,111000.0,0.12317767]
[1760565094502,0.53952119,111010.0,111000.0,0.12317767]
[1760565094706,0.56372027,111010.0,111000.0,0.12317767]
[1760565095137,0.56372027,111010.0,111000.0,0.00957767]
[1760565098642,0.18021099,110990.0,110970.0,0.0721521]
[1760565098873,0.18021265,110980.0,110970.0,0.0721521]
[1760565099083,0.18021265,110980.0,110970.0,0.114]
[1760565099925,0.18021265,110980.0,110970.0,0.0004]
[1760565100132,0.18021265,110980.0,110970.0,0.115]
[1760565100333,0.12977012,110990.0,110970.0,0.0014]
[1760565100548,0.18021265,110980.0,110970.0,0.0014]
[1760565100757,0.18021265,110980.0,110970.0,0.0024]
[1760565101210,5.52021265,110980.0,110970.0,0.0014]
[1760565101423,5.62932105,110980.0,110970.0,0.0014]
[1760565101622,5.68060277,110980.0,110970.0,0.0014]
[1760565101823,5.79320277,110980.0,110970.0,0.0014]
[1760565102255,5.79320277,110980.0,110970.0,0.0004]
[1760565102680,5.76900369,110980.0,110970.0,1e-08]
[1760565102879,5.79320277,110980.0,110970.0,1e-08]
[1760565103089,5.81747572,110980.0,110970.0,1e-08]
[1760565103692,5.81847572,110980.0,110970.0,1e-08]
[1760565104180,5.81747572,110980.0,110970.0,1e-08]
[1760565104387,5.82665419,110980.0,110970.0,1e-08]
[1760565104623,5.82765419,110980.0,110970.0,1e-08]
[1760565105287,5.85186954,110980.0,110970.0,1e-08]
[1760565105527,5.82765419,110980.0,110970.0,1e-08]
[1760565105722,5.89864351,110980.0,110970.0,1e-08]
[1760565106560,5.78504351,110980.0,110970.0,1e-08]
[1760565106767,5.89868351,110980.0,110970.0,1e-08]
[1760565108308,5.93156454,110980.0,110970.0,1e-08]
[1760565108883,5.93986485,110980.0,110970.0,1e-08]
[1760565109086,0.52027762,110940.0,110930.0,0.0004]
[1760565109295,0.74302602,110940.0,110920.0,1e-08]
[1760565109500,5.60998399,110930.0,110920.0,1e-08]
[1760565109719,5.65650015,110930.0,110920.0,1e-08]
[1760565110172,5.65650015,110930.0,110920.0,0.00050122]
[1760565110580,5.68066551,110930.0,110920.0,1e-08]
[1760565110790,5.73370727,110930.0,110920.0,1e-08]
[1760565111211,5.81509204,110930.0,110920.0,1e-08]
[1760565111820,5.84731252,110930.0,110920.0,1e-08]
[1760565112450,0.18031013,110920.0,110910.0,0.0004]
[1760565112652,5.31354914,110920.0,110910.0,1e-08]
[1760565112885,5.33437776,110920.0,110910.0,1e-08]
[1760565113100,5.45613943,110920.0,110910.0,1e-08]
[1760565113328,5.40575158,110920.0,110910.0,1e-08]
[1760565113760,5.40675158,110920.0,110910.0,1e-08]
[1760565114180,5.43084174,110920.0,110910.0,1e-08]
[1760565114391,5.43184174,110920.0,110910.0,1e-08]
[1760565115039,5.43084174,110920.0,110910.0,1e-08]
[1760565115262,5.39962126,110920.0,110910.0,1e-08]
[1760565115671,5.39762126,110920.0,110910.0,1e-08]
[1760565115883,5.39862126,110920.0,110910.0,1e-08]
[1760565116174,5.18032639,110910.0,110900.0,1e-08]
[1760565116390,5.18035891,110890.0,110880.0,0.0004]
[1760565116612,5.27004903,110890.0,110880.0,0.00055056]
[1760565117021,5.63715467,110890.0,110840.0,0.0717521]
[1760565117228,0.18042399,110850.0,110830.0,1.04867607]
[1760565117434,0.18042399,110850.0,110840.0,0.11368]
[1760565117636,0.18042399,110850.0,110830.0,0.7547007]
[1760565117841,0.18042399,110850.0,110840.0,0.11368]
[1760565118285,0.18042399,110850.0,110830.0,0.72008238]
[1760565118496,0.18057391,110850.0,110840.0,0.11368]
[1760565118650,0.18044027,110840.0,110830.0,0.32014667]
[1760565118852,0.18057391,110850.0,110830.0,0.32114667]
[1760565119092,0.18057391,110850.0,110830.0,0.43382667]
[1760565119295,0.18057391,110850.0,110840.0,0.11368]
[1760565119511,0.18044027,110840.0,110830.0,0.051]
[1760565119645,0.18044027,110840.0,110830.0,0.16468]
[1760565119861,0.18044027,110840.0,110830.0,0.34613655]
[1760565120270,0.18044027,110840.0,110830.0,0.34513655]
[1760565120949,0.18044027,110840.0,110830.0,0.23145655]
[1760565121117,0.00014992,110850.0,110840.0,0.18044027]
[1760565121297,0.00014992,110850.0,110840.0,0.71240408]
[1760565121530,0.00014992,110850.0,110840.0,0.29412027]
[1760565121724,0.00014992,110850.0,110840.0,0.71240408]
[1760565122213,0.00014992,110850.0,110840.0,0.71653338]
[1760565122453,0.00014992,110850.0,110840.0,2.40068959]
[1760565122656,0.00014992,110850.0,110840.0,1.56516197]
[1760565122783,0.00014992,110850.0,110840.0,2.40272959]
[1760565123481,0.00014992,110850.0,110840.0,1.92769823]
[1760565123736,0.00014992,110850.0,110840.0,2.04241823]
[1760565123903,0.00014992,110850.0,110840.0,1.92869823]
[1760565124107,0.00014992,110850.0,110840.0,2.04141823]
[1760565124306,0.00014992,110850.0,110840.0,2.04241823]
[1760565125162,0.26118521,110880.0,110840.0,2.04241823]
[1760565125163,0.26118521,110880.0,110860.0,0.18040772]
[1760565125367,0.26118521,110880.0,110860.0,0.18090983]
[1760565125574,0.18039144,110870.0,110860.0,0.18090983]
[1760565125787,0.18039144,110870.0,110860.0,0.29462983]
[1760565126003,0.18943311,110880.0,110860.0,0.29462983]
[1760565126418,0.18943311,110880.0,110870.0,0.29411144]
[1760565126624,0.18943311,110880.0,110870.0,0.1827504]
[1760565126838,0.21654109,110900.0,110880.0,0.18037518]
[1760565127040,0.18943655,110900.0,110890.0,0.11372]
[1760565127488,0.22343691,110900.0,110890.0,0.11372]
[1760565128087,0.22343691,110900.0,110880.0,0.18037518]
[1760565128294,0.03400036,110900.0,110890.0,0.29415891]
[1760565128514,0.14613119,110920.0,110900.0,0.18033571]
[1760565128722,0.19020739,110920.0,110900.0,0.18033571]
[1760565128917,0.19020739,110920.0,110910.0,0.1138]
[1760565129124,0.15514669,110920.0,110910.0,0.11384]
[1760565129329,0.18040454,110930.0,110910.0,0.18032639]
[1760565129531,0.18040454,110930.0,110910.0,0.29416639]
[1760565129736,0.18055505,110930.0,110910.0,0.29416639]
[1760565129938,0.18031013,110920.0,110910.0,0.18032639]
[1760565130138,0.18031013,110920.0,110910.0,0.29416639]
[1760565130350,0.18032639,110910.0,110900.0,0.18034223]
[1760565130568,0.18032639,110910.0,110900.0,0.38387235]
[1760565130797,0.18031013,110920.0,110900.0,0.27003235]
[1760565131010,0.18031013,110920.0,110910.0,0.1138]
[1760565131436,0.18031013,110920.0,110910.0,0.18032639]
[1760565131630,0.18031013,110920.0,110910.0,0.29412639]
[1760565131834,0.18031013,110920.0,110910.0,0.1138]
[1760565132039,0.18031013,110920.0,110900.0,0.27003235]
[1760565132230,0.18031013,110920.0,110910.0,0.1138]
[1760565133559,0.18034265,110900.0,110890.0,0.00117927]
[1760565133776,5.28938065,110900.0,110890.0,0.00117927]
[1760565133992,5.62938065,110900.0,110890.0,0.00117927]
[1760565134631,5.65345111,110900.0,110890.0,0.00117927]
[1760565134856,5.65345111,110900.0,110890.0,0.00217927]
[1760565135116,5.65445111,110900.0,110890.0,0.00217927]
[1760565135324,5.68567159,110900.0,110890.0,0.00117927]
[1760565135531,5.66360113,110900.0,110890.0,0.00117927]
[1760565137227,5.66260113,110900.0,110890.0,0.00117927]
[1760565137454,5.68870564,110900.0,110890.0,0.00117927]
[1760565137660,5.69070564,110900.0,110890.0,0.00117927]
[1760565138692,5.65848516,110900.0,110890.0,0.00117927]
[1760565139350,5.73966062,110900.0,110890.0,0.00117927]
[1760565139890,5.65848516,110900.0,110890.0,0.00117927]
[1760565141110,5.67517767,110900.0,110890.0,0.00117927]
[1760565141316,5.65848516,110900.0,110890.0,0.00117927]
[1760565142143,5.67517942,110900.0,110890.0,0.00117927]
[1760565142340,5.65848516,110900.0,110890.0,0.00117927]
[1760565142785,5.67518255,110900.0,110890.0,0.00117927]
[1760565143376,5.65848516,110900.0,110890.0,0.00117927]
[1760565143752,5.67518114,110900.0,110890.0,1e-08]
[1760565143966,5.67518114,110900.0,110840.0,0.2612095]
[1760565143967,0.18042399,110850.0,110840.0,0.0717521]
[1760565144176,0.18042399,110850.0,110840.0,0.1855921]
[1760565144382,0.18042399,110850.0,110830.0,0.97045335]
[1760565144585,0.18042399,110850.0,110840.0,0.11384]
[1760565145209,0.18042399,110850.0,110840.0,0.11634211]
[1760565145619,0.18042399,110850.0,110840.0,0.00250211]
[1760565145825,0.18042399,110850.0,110840.0,0.11634211]
[1760565146978,0.18042399,110850.0,110840.0,0.00250211]
[1760565147176,0.18042399,110850.0,110840.0,0.11634211]
[1760565147614,0.18042399,110850.0,110840.0,0.00250211]
[1760565148074,0.18042399,110850.0,110840.0,0.11634211]
[1760565148940,0.18042399,110850.0,110840.0,0.00250211]
[1760565149146,0.19980634,110850.0,110840.0,0.00250211]
[1760565149352,0.19980634,110850.0,110840.0,0.11630211]
[1760565149550,0.19980634,110850.0,110840.0,0.11925187]
[1760565149965,0.19980634,110850.0,110840.0,0.11725187]
[1760565151241,0.19980634,110850.0,110840.0,0.00345187]
[1760565151453,0.19980634,110850.0,110840.0,0.11725187]
[1760565153431,0.19980634,110850.0,110840.0,0.00345187]
[1760565153640,0.19980634,110850.0,110840.0,0.11725187]
[1760565154329,0.19980634,110850.0,110840.0,0.00345187]
[1760565154531,0.19980634,110850.0,110840.0,0.11725187]
[1760565156352,0.19980634,110850.0,110840.0,0.00345187]
[1760565156565,0.19980634,110850.0,110840.0,0.11725187]
[1760565158839,0.19980634,110850.0,110840.0,0.11721187]
[1760565159682,0.19980634,110850.0,110840.0,0.00345187]
[1760565159893,0.19980634,110850.0,110840.0,0.11721187]
[1760565160326,0.1998019,110850.0,110840.0,0.11721187]
[1760565160542,0.1998019,110850.0,110840.0,0.00345187]
[1760565160749,0.28949202,110850.0,110840.0,0.11721187]
[1760565160967,0.28949202,110850.0,110840.0,0.11729187]
[1760565161162,0.28949202,110850.0,110840.0,0.00345187]
[1760565161365,0.28949202,110850.0,110840.0,0.11729187]
[1760565161765,0.28949202,110850.0,110840.0,0.00345187]
[1760565161947,0.28949202,110850.0,110840.0,0.11729187]
[1760565162357,0.28949202,110850.0,110840.0,0.00345187]
[1760565162556,0.28949202,110850.0,110840.0,0.11729187]
[1760565162922,0.28949202,110850.0,110840.0,0.00345187]
[1760565163131,0.28949202,110850.0,110840.0,0.11729187]
[1760565163515,0.31372745,110850.0,110840.0,0.11725187]
[1760565163947,0.31372745,110850.0,110840.0,0.00345187]
[1760565164148,0.31372745,110850.0,110840.0,0.11725187]
[1760565164771,0.31372745,110850.0,110840.0,0.00345187]
[1760565164974,0.31372745,110850.0,110840.0,0.11725187]
[1760565165393,0.28949202,110850.0,110840.0,0.00345187]
[1760565165594,0.28949202,110850.0,110840.0,0.11725187]
[1760565169385,0.1998019,110850.0,110840.0,0.11725187]
[1760565169834,0.18042399,110850.0,110840.0,0.11725187]
[1760565170699,0.21940088,110860.0,110840.0,0.29769214]
[1760565170918,0.21940088,110860.0,110850.0,0.19846638]
[1760565170919,0.18942915,110860.0,110850.0,0.19846638]
[1760565171138,0.18942915,110860.0,110850.0,0.29658359]
[1760565171804,0.18942729,110870.0,110850.0,0.29658359]
[1760565172017,0.18942729,110870.0,110850.0,0.29422399]
[1760565172452,0.18942729,110870.0,110860.0,0.01804077]
[1760565172894,0.18942729,110870.0,110860.0,0.13184077]
[1760565173106,0.18942729,110870.0,110860.0,0.01804077]
[1760565173310,0.18942729,110870.0,110860.0,0.13184077]
[1760565173713,0.18942729,110870.0,110860.0,0.01804077]
[1760565173868,0.18942729,110870.0,110860.0,0.13184077]
[1760565174320,0.18942729,110870.0,110860.0,0.01804077]
[1760565174483,0.18942729,110870.0,110860.0,0.13180077]
[1760565174891,0.18942729,110870.0,110860.0,0.01804077]
[1760565175092,0.18942729,110870.0,110860.0,0.13280077]
[1760565175501,0.20937118,110880.0,110860.0,0.40389861]
[1760565175727,0.20937118,110880.0,110870.0,0.18039144]
[1760565175929,0.20937118,110880.0,110870.0,0.29415144]
[1760565176143,0.20937118,110880.0,110870.0,0.18039144]
[1760565176342,0.18935978,110900.0,110870.0,1.20323645]
[1760565176561,0.18035891,110890.0,110880.0,0.40186281]
[1760565176782,0.18035891,110890.0,110880.0,0.3838253]
[1760565176985,0.18035891,110890.0,110880.0,0.2700653]
[1760565177191,0.18035891,110890.0,110880.0,0.3838653]
[1760565177605,0.18050933,110890.0,110880.0,0.2700653]
[1760565177812,0.18050933,110890.0,110880.0,0.3848653]
[1760565178226,0.18050933,110890.0,110880.0,0.2710653]
[1760565178433,0.18050933,110890.0,110880.0,0.3848653]
[1760565179070,0.00015042,110890.0,110880.0,0.3848653]
[1760565179934,0.00015042,110890.0,110880.0,0.3858653]
[1760565180468,0.18050933,110890.0,110880.0,0.3858653]
[1760565180704,0.18050933,110890.0,110880.0,0.2720653]
[1760565180909,0.18050933,110890.0,110880.0,0.3858253]
[1760565181324,0.18050933,110890.0,110880.0,0.80522019]
[1760565181528,0.18050933,110890.0,110880.0,0.3858253]
[1760565181952,0.18054933,110890.0,110880.0,0.3858253]
[1760565182161,0.18054933,110890.0,110880.0,0.2720653]
[1760565182377,0.18054933,110890.0,110880.0,0.3858253]
[1760565182859,0.18054933,110890.0,110880.0,0.38641504]
[1760565183050,0.18054933,110890.0,110880.0,0.27265504]
[1760565183265,0.18054933,110890.0,110880.0,0.88637504]
[1760565183483,0.00019042,110890.0,110880.0,1.34195221]
[1760565183714,0.00019042,110890.0,110880.0,1.66255732]
[1760565183960,0.00019042,110890.0,110880.0,2.59712446]
[1760565184187,0.00019042,110890.0,110880.0,3.01651935]
[1760565184654,0.00019042,110890.0,110880.0,2.90279935]
[1760565184862,0.00019042,110890.0,110880.0,3.01655935]
[1760565185509,0.00019042,110890.0,110880.0,2.90279935]
[1760565185727,0.00019042,110890.0,110880.0,3.01655935]
[1760565186575,0.00019042,110890.0,110880.0,3.01555935]
[1760565186798,0.00019042,110890.0,110880.0,3.01755935]
[1760565187014,0.00019042,110890.0,110880.0,2.90279935]
[1760565187239,0.00019042,110890.0,110880.0,3.01855935]
[1760565187859,0.00019042,110890.0,110880.0,2.90479935]
[1760565188080,0.00019042,110890.0,110880.0,3.01855935]
[1760565190923,0.00019042,110890.0,110880.0,0.59427986]
[1760565191138,0.18054933,110890.0,110880.0,0.50458974]
[1760565191348,0.29918215,110890.0,110880.0,0.50458974]
[1760565191767,0.29918215,110890.0,110880.0,0.61642974]
[1760565192251,0.29918215,110890.0,110880.0,0.61742974]
[1760565192671,0.29918215,110890.0,110880.0,0.50258974]
[1760565192877,0.30018215,110890.0,110880.0,0.61638974]
[1760565193059,0.30018215,110890.0,110880.0,0.61438974]
[1760565193295,0.30018215,110890.0,110880.0,0.50058974]
[1760565193514,0.30018215,110890.0,110880.0,0.61438974]
[1760565193928,0.30118215,110890.0,110880.0,0.61438974]
[1760565195682,0.30118215,110890.0,110880.0,0.50058974]
[1760565195892,0.30118215,110890.0,110880.0,0.61438974]
[1760565196334,0.30118215,110890.0,110880.0,0.50058974]
[1760565196540,0.30118215,110890.0,110880.0,0.61438974]
[1760565198013,0.27223945,110890.0,110880.0,0.61438974]
[1760565199967,0.27223945,110890.0,110880.0,0.50058974]
[1760565200181,0.27223945,110890.0,110880.0,0.61434974]
[1760565201492,0.31736059,110890.0,110880.0,0.61434974]
[1760565201697,5.65736059,110890.0,110880.0,0.50058974]
[1760565201901,5.68159602,110890.0,110880.0,0.50058974]
[1760565202762,5.68159602,110890.0,110880.0,0.00058974]
[1760565203173,5.65736059,110890.0,110880.0,0.00058974]
[1760565203598,0.18044027,110840.0,110830.0,1.02623023]
[1760565203821,0.18043803,110850.0,110830.0,0.71592035]
[1760565204031,0.18043803,110850.0,110830.0,0.75792825]
[1760565204245,0.18044027,110840.0,110830.0,0.11469012]
[1760565204450,0.18044027,110840.0,110830.0,0.40890667]
[1760565204656,0.18044027,110840.0,110830.0,0.29514667]
[1760565204870,0.18044027,110840.0,110830.0,0.41040878]
[1760565205324,0.13960786,110850.0,110830.0,0.29664878]
[1760565205535,0.18044027,110840.0,110830.0,0.11619223]
[1760565205739,0.18044027,110840.0,110830.0,0.22995223]
[1760565205950,0.18044027,110840.0,110830.0,0.41040878]
[1760565206810,0.18044027,110840.0,110830.0,0.29664878]
[1760565207015,0.18044027,110840.0,110830.0,0.40940878]
[1760565207620,0.18044027,110840.0,110830.0,0.29564878]
[1760565207900,0.18044027,110840.0,110830.0,0.40940878]
[1760565208337,0.18044027,110840.0,110830.0,0.29564878]
[1760565208538,0.18044027,110840.0,110830.0,0.40940878]
[1760565209197,0.18044027,110840.0,110830.0,0.22895223]
[1760565209415,0.18044027,110840.0,110830.0,0.23190239]
[1760565209628,0.18044027,110840.0,110830.0,0.41235894]
[1760565209837,0.18044027,110840.0,110830.0,0.91235894]
[1760565210281,0.18044027,110840.0,110830.0,0.73190239]
[1760565210902,0.18044027,110840.0,110830.0,0.91235894]
[1760565211338,0.18044027,110840.0,110830.0,0.79859894]
[1760565211625,0.18044027,110840.0,110830.0,0.88735894]
[1760565213396,0.18044027,110840.0,110830.0,0.50345227]
[1760565213595,0.18044027,110840.0,110830.0,0.61721227]
[1760565214913,0.18044027,110840.0,110830.0,0.50345227]
[1760565215121,0.18044027,110840.0,110830.0,0.61721227]
[1760565215762,0.18044027,110840.0,110830.0,0.50345227]
[1760565215896,0.18044027,110840.0,110830.0,0.61721227]
[1760565216298,0.18044027,110840.0,110830.0,0.50345227]
[1760565216504,0.18044027,110840.0,110830.0,0.61721227]
[1760565218137,0.18044027,110840.0,110830.0,0.50345227]
[1760565218318,0.18044027,110840.0,110830.0,0.61721227]
[1760565226042,0.13960786,110850.0,110840.0,0.18044027]
[1760565226272,0.18042399,110850.0,110840.0,0.18044027]
[1760565226495,0.18040772,110860.0,110850.0,0.18042399]
[1760565226709,0.18043794,110870.0,110860.0,0.18040772]
[1760565227175,0.18040772,110860.0,110850.0,0.8050349]
[1760565227371,0.18043794,110870.0,110850.0,0.8050349]
[1760565227643,0.18043794,110870.0,110860.0,0.31220849]
[1760565227839,0.18043794,110870.0,110860.0,0.29416772]
[1760565228063,0.18043794,110870.0,110860.0,0.11376]
[1760565228707,0.18043794,110870.0,110860.0,0.61376]
[1760565229565,0.18043794,110870.0,110860.0,1.21355871]
[1760565230396,0.18043794,110870.0,110860.0,0.79416772]
[1760565230611,0.18039144,110870.0,110860.0,1.30324883]
[1760565230800,0.18039144,110870.0,110860.0,0.77009784]
[1760565231264,0.18039144,110870.0,110860.0,0.88385784]
[1760565232971,0.18039144,110870.0,110860.0,0.8850376]
[1760565233192,0.18039144,110870.0,110860.0,0.70462988]
[1760565233399,0.18039144,110870.0,110860.0,0.8850376]
[1760565233814,0.18039144,110870.0,110860.0,0.70462988]
[1760565234680,0.18039144,110870.0,110860.0,0.59086988]
[1760565234892,0.18039144,110870.0,110860.0,0.70462988]
[1760565236792,0.18039144,110870.0,110860.0,0.50117976]
[1760565237042,5.62950409,110870.0,110860.0,0.50117976]
[1760565237251,5.65373952,110870.0,110860.0,0.50117976]
[1760565238326,5.65473952,110870.0,110860.0,0.50117976]
[1760565239174,5.65573952,110870.0,110860.0,0.50117976]
[1760565240673,5.65573952,110870.0,110860.0,0.00117976]
[1760565243037,5.68805342,110870.0,110860.0,0.00117976]
[1760565243503,5.65573952,110870.0,110860.0,0.00117976]
[1760565243716,5.68805342,110870.0,110860.0,0.00117976]
[1760565245465,0.65573952,110870.0,110860.0,0.00117976]
[1760565245881,5.65573952,110870.0,110860.0,0.00117976]
[1760565247299,5.63150409,110870.0,110860.0,0.00117976]
[1760565251379,5.42056706,110870.0,110860.0,1e-08]
[1760565251739,5.62038018,110870.0,110860.0,1e-08]
[1760565251939,5.73414018,110870.0,110860.0,1e-08]
[1760565252363,5.62038018,110870.0,110860.0,1e-08]
[1760565252575,5.73414018,110870.0,110860.0,1e-08]
[1760565252985,5.62038018,110870.0,110860.0,1e-08]
[1760565253202,5.73414018,110870.0,110860.0,1e-08]
[1760565253405,5.62038018,110870.0,110860.0,1e-08]
[1760565253642,5.73414018,110870.0,110860.0,1e-08]
[1760565255395,5.7147185,110870.0,110860.0,1e-08]
[1760565255875,5.6009585,110870.0,110860.0,1e-08]
[1760565256084,5.75691095,110870.0,110860.0,1e-08]
[1760565256288,5.64315095,110870.0,110860.0,1e-08]
[1760565256488,5.75691095,110870.0,110860.0,1e-08]
[1760565257494,5.67933323,110870.0,110860.0,1e-08]
[1760565257717,5.79309323,110870.0,110860.0,1e-08]
[1760565258378,5.67933323,110870.0,110860.0,1e-08]
[1760565258588,5.79209323,110870.0,110860.0,1e-08]
[1760565258815,5.79109323,110870.0,110860.0,1e-08]
[1760565259028,5.79209323,110870.0,110860.0,1e-08]
[1760565260483,5.79409323,110870.0,110860.0,1e-08]
[1760565261085,5.68033323,110870.0,110860.0,1e-08]
[1760565261321,5.79409323,110870.0,110860.0,1e-08]
[1760565261534,5.81832866,110870.0,110860.0,1e-08]
[1760565261750,5.70456866,110870.0,110860.0,1e-08]
[1760565262181,5.81832866,110870.0,110860.0,1e-08]
[1760565263458,5.70456866,110870.0,110860.0,1e-08]
[1760565263670,5.81832866,110870.0,110860.0,1e-08]
[1760565264076,5.70456866,110870.0,110860.0,1e-08]
[1760565264281,5.81832866,110870.0,110860.0,1e-08]
[1760565264486,5.85064256,110870.0,110860.0,1e-08]
[1760565264688,5.73688256,110870.0,110860.0,1e-08]
[1760565264894,5.85064256,110870.0,110860.0,1e-08]
[1760565265302,5.82640713,110870.0,110860.0,1e-08]
[1760565265919,5.71264713,110870.0,110860.0,1e-08]
[1760565266125,5.82640713,110870.0,110860.0,1e-08]
[1760565266603,5.87487799,110870.0,110860.0,1e-08]
[1760565268380,5.84256409,110870.0,110860.0,1e-08]
[1760565269475,5.72880409,110870.0,110860.0,1e-08]
[1760565269687,5.84256409,110870.0,110860.0,1e-08]
[1760565271625,5.72880409,110870.0,110860.0,1e-08]
[1760565272040,5.84256409,110870.0,110860.0,1e-08]